fUST/lending_fUST_20260130
["ID","MTS","AMOUNT","RATE_DAILY","PERIOD"]
[404019953,1769735439981,-755.6523831,0.0001162,2]
[404019954,1769735439995,-1095.21043255,0.0001162,2]
[404019955,1769735440006,-37641.00759588,0.0001162,2]
[404019956,1769735440028,-332.11956149,0.0001162,2]
[404020007,1769735444658,-325.55877297,0.0001162,2]
[404020008,1769735444718,-1378.62418136,0.0001162,2]
[404020009,1769735444731,-419.18467264,0.0001162,2]
[404020021,1769735445910,-539.347,0.0001162,2]
[404020022,1769735445922,-1463.83854795,0.0001162,2]
[404020023,1769735445968,-3253.80120065,0.0001162,2]
[404020024,1769735445979,-13671.83373125,0.0001162,2]
[404020049,1769735718624,6548.97074366,0.00030136,120]
[404020052,1769735910973,261.52478426,0.00034743,120]
[404020053,1769735911384,261.52478426,0.00034743,120]
[404020054,1769735911768,261.52478426,0.00034743,120]
[404020074,1769736304904,1811.69,0.00034759,120]
[404020075,1769736305172,1811.69,0.00034759,120]
[404020076,1769736305435,1811.69,0.00034759,120]
[404020077,1769736305723,1811.69,0.00034759,120]
[404020078,1769736305982,1811.69,0.00034759,120]
[404020079,1769736306227,1811.69,0.00034759,120]
[404020080,1769736306483,1811.69,0.00034759,120]
[404020081,1769736306732,1811.69,0.00034759,120]
[404020082,1769736307036,1811.69,0.00034759,120]
[404020083,1769736307328,1811.69,0.00034759,120]
[404020084,1769736307787,1811.69,0.00034759,120]
[404020085,1769736308062,1811.69,0.00034759,120]
[404020086,1769736308522,1811.69,0.00034759,120]
[404020087,1769736308794,1811.69,0.00034759,120]
[404020088,1769736309053,1811.69,0.00034759,120]
[404020089,1769736309302,1811.69,0.00034759,120]
[404020090,1769736309603,1811.69,0.00034759,120]
[404020091,1769736310043,1811.69,0.00034759,120]
[404020092,1769736310302,1811.69,0.00034759,120]
[404020093,1769736310580,1811.69,0.00034759,120]
[404020094,1769736310847,1811.69,0.00034759,120]
[404020095,1769736311129,1811.69,0.00034759,120]
[404020096,1769736311507,1811.69,0.00034759,120]
[404020097,1769736311638,1811.92172115,0.00034759,120]
[404020140,1769736550089,-150.65,0.0001,2]
[404020141,1769736550110,-198.95562409,0.00010064,2]
[404020142,1769736550133,-564.0,0.00010254,2]
[404020143,1769736550154,-485.077566,0.00010363,2]
[404020144,1769736550177,-101.32248044,0.000105,2]
[404020146,1769736605388,272.08642094,0.00034761,120]
[404020147,1769736608132,285.34877172,0.00034761,120]
[404020148,1769736612397,302.19258507,0.00034761,120]
[404020149,1769736615634,369.32877736,0.00034761,120]
[404020150,1769736617200,157.66055165,0.00034761,120]
[404020151,1769736621487,-49.32751956,0.000105,2]
[404020152,1769736621516,-567.0,0.000105,2]
[404020153,1769736621545,-150.65,0.00011,2]
[404020154,1769736624005,352.59239451,0.00034761,120]
[404020155,1769736625215,4225.0,0.00034761,120]
[404020156,1769736630374,255.07054975,0.00034761,120]
[404020193,1769736631850,-300.0,0.00011306,2]
[404020194,1769736631859,-86.37513093,0.00011307,2]
[404020195,1769736631870,-126.77326778,0.00011307,2]
[404020196,1769736631880,-500.0,0.00011307,2]
[404020197,1769736631889,-222.35139926,0.00011307,2]
[404020198,1769736631898,-500.0,0.00011307,2]
[404020199,1769736631907,-200.0,0.00011307,2]
[404020200,1769736631916,-9592.27283232,0.00011307,2]
[404020201,1769736631927,-407.73716768,0.00011307,2]
[404020202,1769736631937,-150.0,0.00011339,2]
[404020203,1769736631946,-500.0,0.00011339,2]
[404020204,1769736631955,-150.0,0.00011339,2]
[404020205,1769736631964,-150.0,0.00011339,2]
[404020206,1769736631973,-150.0,0.00011339,2]
[404020207,1769736631982,-180.81716895,0.00011339,2]
[404020208,1769736631992,-15943.96654273,0.00011372,2]
[404020224,1769736635260,500.0,0.00034761,120]
[404020225,1769736635545,500.0,0.00034761,120]
[404020226,1769736635826,223.28865819,0.00034761,120]
[404020227,1769736637212,-1997.3416367,0.00011372,2]
[404020241,1769736637892,-500.0,0.00011371,2]
[404020243,1769736637902,-322.56414964,0.00011371,2]
[404020245,1769736637912,-574.70751613,0.00011371,2]
[404020246,1769736637921,-253.80345527,0.00011371,2]
[404020248,1769736637930,-12058.69182057,0.00011372,2]
[404020250,1769736637940,-151.0,0.000114,2]
[404020252,1769736637949,-970.78602,0.00011437,2]
[404020254,1769736637958,-500.0,0.00011444,2]
[404020256,1769736637967,-500.0,0.00011444,2]
[404020258,1769736637977,-1957.856,0.00011469,2]
[404020259,1769736637986,-2487.15318209,0.00011469,2]
[404020261,1769736637996,-150.0,0.00011476,2]
[404020263,1769736638005,-500.0,0.00011476,2]
[404020265,1769736638015,-150.0,0.00011476,2]
[404020267,1769736638024,-150.0,0.00011476,2]
[404020269,1769736638034,-150.65,0.000115,2]
[404020271,1769736638043,-151.0,0.000115,2]
[404020273,1769736638053,-604.1333812,0.000115,2]
[404020275,1769736638062,-604.1333812,0.000115,2]
[404020277,1769736638073,-465.3721551,0.000115,2]
[404020279,1769736638082,-185.4706062,0.000115,2]
[404020282,1769736638093,-154.3763159,0.000115,2]
[404020284,1769736638102,-283.5868149,0.000115,2]
[404020285,1769736638111,-2030.296672,0.00011524,2]
[404020287,1769736638121,-150.0,0.00011526,2]
[404020289,1769736638130,-150.0,0.00011526,2]
[404020291,1769736638139,-2105.41764886,0.00011579,2]
[404020293,1769736638148,-500.0,0.00011581,2]
[404020295,1769736638158,-500.0,0.00011581,2]
[404020297,1769736638168,-604.1333812,0.000116,2]
[404020299,1769736638178,-604.1333812,0.000116,2]
[404020301,1769736638189,-604.1333812,0.000116,2]
[404020303,1769736638198,-604.1333812,0.000116,2]
[404020305,1769736638208,-604.1333812,0.000116,2]
[404020307,1769736638218,-604.1333812,0.000116,2]
[404020309,1769736638228,-397.07098167,0.00011609,2]
[404020311,1769736638237,-151.0,0.0001161,2]
[404020313,1769736638247,-250.0,0.0001161,2]
[404020315,1769736638257,-514.84070869,0.0001161,2]
[404020317,1769736638266,-1000.0,0.0001161,2]
[404020319,1769736638276,-151.0,0.0001161,2]
[404020320,1769736638286,-250.0,0.0001161,2]
[404020322,1769736638295,-1000.0,0.0001161,2]
[404020324,1769736638304,-151.0,0.0001161,2]
[404020326,1769736638314,-250.0,0.0001161,2]
[404020328,1769736638323,-1000.0,0.0001161,2]
[404020330,1769736638333,-151.0,0.0001161,2]
[404020332,1769736638342,-250.0,0.0001161,2]
[404020334,1769736638352,-1000.0,0.0001161,2]
[404020336,1769736638361,-151.0,0.0001161,2]
[404020338,1769736638370,-250.0,0.0001161,2]
[404020339,1769736638380,-1000.0,0.0001161,2]
[404020341,1769736638389,-151.0,0.0001161,2]
[404020343,1769736638398,-250.0,0.0001161,2]
[404020345,1769736638407,-1000.0,0.0001161,2]
[404020347,1769736638417,-178.31692057,0.0001161,2]
[404020349,1769736638426,-250.0,0.0001161,2]
[404020351,1769736638436,-1000.0,0.0001161,2]
[404020353,1769736638445,-250.0,0.0001161,2]
[404020355,1769736638454,-1000.0,0.0001161,2]
[404020357,1769736638463,-250.0,0.0001161,2]
[404020359,1769736638472,-1000.0,0.0001161,2]
[404020361,1769736638482,-250.0,0.0001161,2]
[404020363,1769736638491,-291.90348463,0.0001161,2]
[404020365,1769736638500,-250.0,0.0001161,2]
[404020367,1769736638510,-329.98982872,0.0001161,2]
[404020369,1769736638519,-187.78006525,0.0001161,2]
[404020371,1769736638528,-194.72792766,0.0001161,2]
[404020373,1769736638538,-201.93286099,0.0001161,2]
[404020375,1769736638547,-209.40437684,0.0001161,2]
[404020376,1769736638560,-217.15233878,0.0001161,2]
[404020378,1769736638569,-225.18697532,0.0001161,2]
[404020380,1769736638579,-233.51889341,0.0001161,2]
[404020382,1769736638588,-242.15909246,0.0001161,2]
[404020384,1769736638597,-251.11897888,0.0001161,2]
[404020386,1769736638607,-260.4103811,0.0001161,2]
[404020388,1769736638617,-270.0455652,0.0001161,2]
[404020390,1769736638626,-280.03725112,0.0001161,2]
[404020392,1769736638635,-290.39862941,0.0001161,2]
[404020394,1769736638644,-301.1433787,0.0001161,2]
[404020396,1769736638654,-500.0,0.00011613,2]
[404020398,1769736638662,-150.0,0.00011613,2]
[404020399,1769736638672,-45369.0879865,0.00011617,2]
[404020401,1769736638681,-911.3435143,0.00011617,2]
[404020403,1769736638691,-475.620029,0.00011617,2]
[404020405,1769736638701,-11756.573382,0.00011617,2]
[404020407,1769736638710,-1482.0527214,0.00011617,2]
[404020409,1769736638719,-192.840619,0.00011617,2]
[404020411,1769736638729,-192.840619,0.00011617,2]
[404020413,1769736638738,-192.840619,0.00011617,2]
[404020415,1769736638747,-192.840619,0.00011617,2]
[404020417,1769736638757,-1437.333121,0.00011617,2]
[404020419,1769736638767,-1437.333121,0.00011617,2]
[404020421,1769736638775,-1437.333121,0.00011617,2]
[404020422,1769736638785,-1437.333121,0.00011617,2]
[404020424,1769736638795,-159.787091,0.00011617,2]
[404020426,1769736638805,-3566.1866922,0.00011617,2]
[404020428,1769736638814,-335.0,0.0001162,2]
[404020430,1769736638823,-335.0,0.0001162,2]
[404020432,1769736638832,-335.0,0.0001162,2]
[404020434,1769736638841,-335.0,0.0001162,2]
[404020435,1769736638850,-335.0,0.0001162,2]
[404020437,1769736638859,-335.0,0.0001162,2]
[404020439,1769736638869,-335.0,0.0001162,2]
[404020440,1769736638879,-335.0,0.0001162,2]
[404020441,1769736638888,-335.0,0.0001162,2]
[404020442,1769736638898,-335.0,0.0001162,2]
[404020443,1769736638907,-335.0,0.0001162,2]
[404020445,1769736638916,-335.0,0.0001162,2]
[404020447,1769736638925,-335.0,0.0001162,2]
[404020449,1769736638934,-335.0,0.0001162,2]
[404020451,1769736638943,-335.0,0.0001162,2]
[404020452,1769736638952,-335.0,0.0001162,2]
[404020453,1769736638961,-335.0,0.0001162,2]
[404020454,1769736638971,-151.0,0.0001162,2]
[404020455,1769736638980,-151.0,0.0001162,2]
[404020456,1769736638990,-151.0,0.0001162,2]
[404020457,1769736639000,-151.0,0.0001162,2]
[404020458,1769736639010,-292.0,0.0001162,2]
[404020459,1769736639020,-151.0,0.0001162,2]
[404020460,1769736639030,-151.0,0.0001162,2]
[404020461,1769736639039,-151.0,0.0001162,2]
[404020462,1769736639048,-151.0,0.0001162,2]
[404020463,1769736639058,-151.0,0.0001162,2]
[404020464,1769736639068,-151.0,0.0001162,2]
[404020465,1769736639078,-151.0,0.0001162,2]
[404020466,1769736639087,-335.0,0.0001162,2]
[404020467,1769736639097,-335.0,0.0001162,2]
[404020468,1769736639107,-335.0,0.0001162,2]
[404020469,1769736639116,-335.0,0.0001162,2]
[404020470,1769736639126,-335.0,0.0001162,2]
[404020471,1769736639135,-335.0,0.0001162,2]
[404020472,1769736639144,-335.0,0.0001162,2]
[404020473,1769736639154,-335.0,0.0001162,2]
[404020474,1769736639167,-335.0,0.0001162,2]
[404020475,1769736639177,-335.0,0.0001162,2]
[404020476,1769736639316,-335.0,0.0001162,2]
[404020477,1769736639327,-335.0,0.0001162,2]
[404020478,1769736639336,-335.0,0.0001162,2]
[404020479,1769736639345,-335.0,0.0001162,2]
[404020480,1769736639354,-335.0,0.0001162,2]
[404020481,1769736639363,-335.0,0.0001162,2]
[404020482,1769736639372,-2183.31810187,0.00011634,2]
[404020483,1769736639382,-192.840619,0.00011636,2]
[404020484,1769736639395,-192.840619,0.00011636,2]
[404020485,1769736639412,-192.840619,0.00011636,2]
[404020486,1769736639422,-192.840619,0.00011636,2]
[404020487,1769736639432,-1437.333121,0.00011636,2]
[404020488,1769736639443,-1437.333121,0.00011636,2]
[404020489,1769736639452,-1437.333121,0.00011636,2]
[404020490,1769736639462,-1437.333121,0.00011636,2]
[404020491,1769736639471,-150.0,0.00011663,2]
[404020492,1769736639479,-150.0,0.00011663,2]
[404020493,1769736639489,-756.41930974,0.00011689,2]
[404020494,1769736639500,-604.1333812,0.000117,2]
[404020495,1769736639510,-500.0,0.00011718,2]
[404020496,1769736639519,-200.0,0.00011718,2]
[404020497,1769736639527,-500.0,0.0001175,2]
[404020498,1769736639537,-192.5231665,0.0001175,2]
[404020499,1769736639546,-150.0,0.0001175,2]
[404020500,1769736639555,-206.36046447,0.000118,2]
[404020501,1769736639564,-150.0,0.000118,2]
[404020502,1769736639574,-151.0,0.000118,2]
[404020503,1769736639586,-12396.9432059,0.0001181,2]
[404020504,1769736639596,-293.59383327,0.0001181,2]
[404020505,1769736639605,-192.840619,0.0001182,2]
[404020506,1769736639614,-192.840619,0.0001182,2]
[404020507,1769736639624,-192.840619,0.0001182,2]
[404020508,1769736639633,-192.840619,0.0001182,2]
[404020509,1769736639643,-1437.333121,0.0001182,2]
[404020510,1769736639652,-1437.333121,0.0001182,2]
[404020511,1769736639662,-1437.333121,0.0001182,2]
[404020513,1769736639671,-1437.333121,0.0001182,2]
[404020514,1769736639680,-500.0,0.00011855,2]
[404020515,1769736639689,-200.0,0.00011855,2]
[404020516,1769736639699,-250.0,0.00011887,2]
[404020517,1769736639708,-178.7912872,0.000119,2]
[404020518,1769736639719,-153.0,0.000119,2]
[404020519,1769736639729,-604.1333812,0.000119,2]
[404020520,1769736639740,-604.1333812,0.000119,2]
[404020521,1769736639751,-604.1333812,0.000119,2]
[404020522,1769736639760,-151.0,0.000119,2]
[404020523,1769736639769,-189.3358387,0.000119,2]
[404020524,1769736639778,-389.1902853,0.000119,2]
[404020525,1769736639787,-3000.0,0.00011911,5]
[404020526,1769736639797,-970.78602,0.00011918,2]
[404020527,1769736639805,-31110.0,0.0001192,2]
[404020528,1769736639816,-3252.0,0.00011922,3]
[404020529,1769736639825,-200.59117545,0.00011937,2]
[404020530,1769736639834,-500.0,0.00011992,2]
[404020531,1769736639843,-250.0,0.00011992,2]
[404020532,1769736639852,-200.0,0.00011992,2]
[404020533,1769736639862,-604.1333812,0.00012,2]
[404020534,1769736639871,-153.0,0.00012,2]
[404020535,1769736639881,-604.1333812,0.00012,2]
[404020536,1769736639890,-185.4706062,0.00012,2]
[404020537,1769736639900,-604.1333812,0.00012,2]
[404020538,1769736639909,-153.0,0.00012,2]
[404020539,1769736639918,-378.7931414,0.00012,2]
[404020540,1769736639927,-150.65,0.00012,2]
[404020541,1769736639937,-2579.17784983,0.00012017,2]
[404020542,1769736639946,-548.22450083,0.00012025,2]
[404020543,1769736639955,-253.65940307,0.00012025,2]
[404020544,1769736639964,-382.48361157,0.00012025,2]
[404020545,1769736639973,-1013.62297468,0.00012025,2]
[404020546,1769736639982,-2190.7051053,0.00012025,2]
[404020547,1769736639992,-2808.20343185,0.00012025,2]
[404020548,1769736640002,-327.36274824,0.00012025,2]
[404020549,1769736640011,-446.79861565,0.00012025,2]
[404020550,1769736640020,-273.40779504,0.00012025,2]
[404020551,1769736640030,-1785.40726813,0.00012025,2]
[404020552,1769736640039,-1092.53754899,0.00012025,2]
[404020553,1769736640048,-234.76763643,0.00012064,2]
[404020554,1769736640057,-192.840619,0.00012085,2]
[404020555,1769736640066,-192.840619,0.00012085,2]
[404020556,1769736640076,-192.840619,0.00012085,2]
[404020557,1769736640085,-192.840619,0.00012085,2]
[404020558,1769736640095,-1437.333121,0.00012085,2]
[404020559,1769736640105,-1437.333121,0.00012085,2]
[404020560,1769736640114,-1437.333121,0.00012085,2]
[404020561,1769736640124,-1437.333121,0.00012085,2]
[404020562,1769736640133,-192.840619,0.00012128,2]
[404020563,1769736640142,-192.840619,0.00012128,2]
[404020564,1769736640152,-192.840619,0.00012128,2]
[404020566,1769736640163,-192.840613,0.00012128,2]
[404020568,1769736640172,-1437.333121,0.00012128,2]
[404020570,1769736640181,-1437.333121,0.00012128,2]
[404020572,1769736640190,-1437.333121,0.00012128,2]
[404020573,1769736640200,-1437.333128,0.00012128,2]
[404020574,1769736640210,-500.0,0.00012129,2]
[404020575,1769736640220,-533.88981491,0.00012158,2]
[404020576,1769736640229,-151.0,0.000122,2]
[404020577,1769736640241,-1308.14154196,0.00012216,2]
[404020578,1769736640252,-500.0,0.00012266,2]
[404020579,1769736640261,-151.0,0.000123,2]
[404020580,1769736640270,-1874.6,0.00012329,2]
[404020581,1769736640280,-1562.16,0.00012329,2]
[404020582,1769736640290,-1301.8,0.00012329,2]
[404020583,1769736640299,-1084.84,0.00012329,2]
[404020584,1769736640310,-904.03,0.00012329,2]
[404020585,1769736640319,-753.36,0.00012329,2]
[404020586,1769736640329,-627.8,0.00012329,2]
[404020587,1769736640339,-523.16,0.00012329,2]
[404020588,1769736640348,-435.97,0.00012329,2]
[404020589,1769736640358,-363.31,0.00012329,2]
[404020590,1769736640367,-302.76,0.00012329,2]
[404020591,1769736640376,-252.3,0.00012329,2]
[404020592,1769736640386,-210.25,0.00012329,2]
[404020593,1769736640395,-175.21,0.00012329,2]
[404020594,1769736640404,-876.05,0.00012329,2]
[404020595,1769736640414,-970.78602,0.00012399,2]
[404020596,1769736640423,-500.0,0.00012403,2]
[404020597,1769736640432,-328.0,0.0001242,2]
[404020598,1769736640442,-32261.07,0.00012468,2]
[404020599,1769736640451,-150.65,0.000125,2]
[404020600,1769736640460,-437.83393516,0.0001254,2]
[404020601,1769736640469,-2674.60743027,0.00012565,2]
[404020602,1769736640479,-151.0,0.000126,2]
[404020603,1769736640488,-151.0,0.000127,2]
[404020604,1769736640499,-553.64373807,0.00012706,2]
[404020605,1769736640508,-300.0,0.00012712,2]
[404020606,1769736640517,-300.0,0.00012712,2]
[404020607,1769736640526,-300.0,0.00012712,2]
[404020608,1769736640537,-300.0,0.00012712,2]
[404020609,1769736640546,-300.0,0.00012712,2]
[404020610,1769736640556,-300.0,0.00012712,2]
[404020611,1769736640565,-300.0,0.00012712,2]
[404020612,1769736640574,-300.0,0.00012712,2]
[404020613,1769736640583,-300.0,0.00012712,2]
[404020614,1769736640593,-300.0,0.00012712,2]
[404020615,1769736640603,-300.0,0.00012712,2]
[404020616,1769736640612,-300.0,0.00012712,2]
[404020617,1769736640621,-300.0,0.00012712,2]
[404020618,1769736640630,-300.0,0.00012712,2]
[404020619,1769736640639,-300.0,0.00012712,2]
[404020620,1769736640649,-600.0,0.00012713,2]
[404020621,1769736640658,-911.3435143,0.00012852,2]
[404020622,1769736640668,-475.620029,0.00012852,2]
[404020623,1769736640679,-1482.0527214,0.00012852,2]
[404020624,1769736640691,-970.78602,0.00012881,2]
[404020625,1769736640699,-150.65,0.000129,2]
[404020626,1769736640708,-151.0,0.00013,2]
[404020627,1769736640719,-33454.72959,0.00013016,2]
[404020628,1769736640728,-151.0,0.000131,2]
[404020629,1769736640738,-10123.2118682,0.00013112,2]
[404020630,1769736640748,-2773.56790519,0.00013113,2]
[404020631,1769736640758,-574.12855637,0.00013254,2]
[404020632,1769736640767,-500.0,0.00013273,2]
[404020633,1769736640776,-500.0,0.00013273,2]
[404020634,1769736640785,-440.24648614,0.00013273,2]
[404020635,1769736640795,-500.0,0.00013273,2]
[404020636,1769736640805,-500.0,0.00013273,2]
[404020637,1769736640814,-500.0,0.00013273,2]
[404020638,1769736640824,-514.72967011,0.00013273,2]
[404020639,1769736640834,-500.0,0.00013273,2]
[404020640,1769736640843,-500.0,0.00013273,2]
[404020641,1769736640852,-500.0,0.00013273,2]
[404020642,1769736640862,-500.0,0.00013273,2]
[404020643,1769736640871,-500.0,0.00013273,2]
[404020644,1769736640880,-500.0,0.00013273,2]
[404020645,1769736640889,-500.0,0.00013273,2]
[404020646,1769736640899,-500.0,0.00013273,2]
[404020647,1769736640908,-158.06423794,0.00013273,2]
[404020648,1769736640917,-500.0,0.00013273,2]
[404020649,1769736640928,-500.0,0.00013273,2]
[404020650,1769736640938,-500.0,0.00013273,2]
[404020651,1769736640948,-500.0,0.00013273,2]
[404020652,1769736640957,-500.0,0.00013273,2]
[404020653,1769736640966,-500.0,0.00013273,2]
[404020654,1769736640975,-500.0,0.00013273,2]
[404020655,1769736640984,-500.0,0.00013273,2]
[404020656,1769736640994,-211.23884365,0.00013273,2]
[404020657,1769736641003,-500.0,0.00013273,2]
[404020658,1769736641013,-500.66101042,0.00013273,2]
[404020659,1769736641023,-186.59987911,0.00013273,2]
[404020660,1769736641032,-500.0,0.00013273,2]
[404020661,1769736641042,-500.0,0.00013273,2]
[404020662,1769736641051,-500.0,0.00013273,2]
[404020663,1769736641060,-500.0,0.00013273,2]
[404020664,1769736641070,-500.0,0.00013273,2]
[404020665,1769736641079,-500.0,0.00013273,2]
[404020666,1769736641088,-500.0,0.00013273,2]
[404020667,1769736641097,-500.0,0.00013273,2]
[404020668,1769736641107,-500.37529675,0.00013273,2]
[404020669,1769736641116,-500.81563659,0.00013273,2]
[404020670,1769736641126,-500.0,0.00013273,2]
[404020671,1769736641135,-500.0,0.00013273,2]
[404020672,1769736641145,-2766.1319228,0.0001333,2]
[404020673,1769736641154,-970.78602,0.00013362,2]
[404020674,1769736641165,-185.4706062,0.00013397,2]
[404020675,1769736641174,-194.7135632,0.00013397,2]
[404020676,1769736641183,-185.4706062,0.00013397,2]
[404020677,1769736641192,-185.4706062,0.00013397,2]
[404020678,1769736641203,-194.7135632,0.00013397,2]
[404020679,1769736641213,-185.4706062,0.00013397,2]
[404020680,1769736641222,-185.4706062,0.00013397,2]
[404020681,1769736641231,-604.1333812,0.00013397,2]
[404020682,1769736641240,-151.0,0.000134,2]
[404020683,1769736641250,-150.65,0.000134,2]
[404020684,1769736641259,-151.0,0.000134,2]
[404020685,1769736641269,-2258.7938853,0.00013445,2]
[404020686,1769736641278,-34692.55458483,0.00013564,2]
[404020687,1769736641288,-3238.98516469,0.00013598,2]
[404020688,1769736641297,-2876.18991768,0.00013661,2]
[404020689,1769736641307,-617.2074589,0.00013669,2]
[404020690,1769736641316,-300.0,0.00013673,2]
[404020691,1769736641327,-500.0,0.00013698,2]
[404020692,1769736641337,-500.0,0.00013698,2]
[404020693,1769736641348,-500.0,0.00013698,2]
[404020694,1769736641359,-500.0,0.00013698,2]
[404020695,1769736641369,-500.0,0.00013698,2]
[404020696,1769736641378,-500.0,0.00013698,2]
[404020697,1769736641387,-500.0,0.00013698,2]
[404020698,1769736641397,-500.0,0.00013698,2]
[404020699,1769736641407,-500.0,0.00013698,2]
[404020700,1769736641418,-500.0,0.00013698,2]
[404020701,1769736641428,-206.62754467,0.00013698,2]
[404020702,1769736641438,-155.131,0.00013698,2]
[404020703,1769736641448,-500.0,0.00013698,2]
[404020704,1769736641458,-500.0,0.00013698,2]
[404020705,1769736641467,-500.0,0.00013698,2]
[404020706,1769736641476,-500.0,0.00013698,2]
[404020707,1769736641485,-500.0,0.00013698,2]
[404020708,1769736641494,-500.0,0.00013698,2]
[404020709,1769736641503,-500.0,0.00013698,2]
[404020710,1769736641513,-500.0,0.00013698,2]
[404020711,1769736641522,-500.0,0.00013698,2]
[404020712,1769736641532,-270.65,0.00013698,2]
[404020713,1769736641541,-500.0,0.00013698,2]
[404020714,1769736641551,-500.0,0.00013698,2]
[404020715,1769736641560,-601.75713385,0.00013698,2]
[404020716,1769736641569,-500.0,0.00013698,2]
[404020717,1769736641578,-500.0,0.00013698,2]
[404020718,1769736641588,-500.0,0.00013698,2]
[404020719,1769736641598,-500.0,0.00013698,2]
[404020720,1769736641607,-2611.18,0.00013698,2]
[404020721,1769736641616,-2611.18,0.00013698,2]
[404020722,1769736641626,-2611.18,0.00013698,2]
[404020723,1769736641636,-2611.18,0.00013698,2]
[404020724,1769736641646,-2611.18,0.00013698,2]
[404020725,1769736641656,-2611.18,0.00013698,2]
[404020726,1769736641666,-2611.18,0.00013698,2]
[404020727,1769736641675,-2611.18,0.00013698,2]
[404020728,1769736641684,-2611.18,0.00013698,2]
[404020729,1769736641693,-2611.18,0.00013698,2]
[404020730,1769736641702,-2611.18,0.00013698,2]
[404020731,1769736641711,-2611.18,0.00013698,2]
[404020732,1769736641720,-2611.18,0.00013698,2]
[404020733,1769736641729,-2611.18,0.00013698,2]
[404020734,1769736641738,-2611.18,0.00013698,2]
[404020735,1769736641750,-2611.18,0.00013698,2]
[404020736,1769736641759,-2611.18,0.00013698,2]
[404020737,1769736641768,-2611.18,0.00013698,2]
[404020738,1769736641777,-2611.18,0.00013698,2]
[404020739,1769736641787,-2611.18,0.00013698,2]
[404020740,1769736641891,-2611.18,0.00013698,2]
[404020741,1769736641902,-2611.18,0.00013698,2]
[404020742,1769736641913,-2611.18,0.00013698,2]
[404020743,1769736641922,-2611.4169842,0.00013698,2]
[404020744,1769736641934,-308.20234009,0.00013698,2]
[404020745,1769736641944,-1000.0,0.00013698,2]
[404020746,1769736641953,-1249.95,0.00013698,2]
[404020747,1769736641963,-1249.95,0.00013698,2]
[404020748,1769736641973,-1249.95,0.00013698,2]
[404020749,1769736641982,-1249.95,0.00013698,2]
[404020750,1769736641991,-1249.95,0.00013698,2]
[404020751,1769736642001,-500.0,0.00013698,2]
[404020752,1769736642010,-500.0,0.00013698,2]
[404020753,1769736642019,-1249.95,0.00013698,2]
[404020754,1769736642028,-500.0,0.00013698,2]
[404020755,1769736642038,-1249.95,0.00013698,2]
[404020756,1769736642047,-500.0,0.00013698,2]
[404020757,1769736642056,-1249.95,0.00013698,2]
[404020758,1769736642066,-500.0,0.00013698,2]
[404020759,1769736642075,-1249.95,0.00013698,2]
[404020760,1769736642084,-589.78946072,0.00013698,2]
[404020761,1769736642093,-1249.95,0.00013698,2]
[404020762,1769736642103,-1249.95,0.00013698,2]
[404020763,1769736642112,-1249.95,0.00013698,2]
[404020764,1769736642121,-1249.95,0.00013698,2]
[404020765,1769736642130,-1249.95,0.00013698,2]
[404020766,1769736642139,-1249.95,0.00013698,2]
[404020767,1769736642149,-1249.95,0.00013698,2]
[404020768,1769736642159,-1249.95,0.00013698,2]
[404020769,1769736642172,-1249.95,0.00013698,2]